bitfinex-derivatives/quotes_ETHF0:USTF0_20260305
["timestamp","ask_amount","ask_price","bid_price","bid_amount"]
[1772696006819,0.55275655,2124.3,2123.7,0.55051651]
[1772696010426,0.59161421,2124.1,2123.2,0.56861114]
[1772696011527,0.59161421,2124.1,2123.4,0.56861114]
[1772696014028,0.59161421,2124.1,2123.2,0.56861114]
[1772696014425,0.59161421,2123.9,2123.2,0.56861114]
[1772696021532,0.59161421,2124.0,2123.2,0.56861114]
[1772696025036,0.59161421,2124.0,2123.4,0.56861114]
[1772696025436,0.59161421,2124.3,2123.4,0.56861114]
[1772696031442,4.53145443,2124.3,2123.4,0.56861114]
[1772696031742,0.59406341,2124.2,2123.4,0.56861114]
[1772696036246,0.0130254,2123.5,2123.0,0.59487025]
[1772696036441,0.23717164,2123.4,2122.3,0.59487025]
[1772696037146,0.23717164,2123.4,2122.5,0.59487025]
[1772696039746,0.23717164,2123.4,2122.2,0.23556]
[1772696039747,0.17237093,2123.2,2122.4,0.59487025]
[1772696042943,0.17474004,2122.9,2121.9,0.59487025]
[1772696043145,0.17474004,2122.6,2121.9,0.59487025]
[1772696044039,0.17474004,2122.4,2121.3,0.59487025]
[1772696044942,0.17474004,2122.4,2121.0,0.24007824]
[1772696044943,1.59756913,2122.2,2121.0,0.59925849]
[1772696045138,0.17771828,2122.1,2121.0,0.59925849]
[1772696045345,0.17771828,2121.6,2121.0,0.59925849]
[1772696045747,0.17771828,2121.6,2121.0,2.95365849]
[1772696046139,0.17771828,2121.6,2121.1,2.3544]
[1772696046344,0.17771828,2121.6,2121.0,0.59925849]
[1772696046750,0.17771828,2121.6,2121.1,0.59487025]
[1772696047653,0.17771828,2121.6,2121.2,0.59487025]
[1772696047851,0.17018979,2121.9,2121.2,0.59487025]
[1772696048050,0.17018979,2122.3,2121.2,0.59487025]
[1772696049446,0.17018979,2122.3,2121.2,2.3544]
[1772696049647,0.17018979,2122.3,2121.3,0.59487025]
[1772696049847,13.05,2122.7,2121.3,0.59487025]
[1772696049848,0.17155185,2122.6,2121.3,0.59487025]
[1772696050044,0.17155185,2122.6,2121.6,0.59487025]
[1772696050751,0.17155185,2122.6,2121.7,0.59487025]
[1772696051157,0.17155185,2122.6,2121.8,0.59487025]
[1772696051656,0.17155185,2122.6,2121.9,0.59487025]
[1772696052552,0.17155185,2122.6,2122.1,0.59487025]
[1772696052958,0.17155185,2122.6,2122.2,0.59487025]
[1772696053259,0.23817687,2122.6,2122.2,0.15344034]
[1772696053454,0.23817687,2122.6,2122.2,2.66039191]
[1772696053655,0.23817687,2122.6,2122.2,2.812248]
[1772696053862,0.23817687,2122.6,2122.3,0.59487025]
[1772696054060,0.59406341,2122.8,2122.3,0.59487025]
[1772696054968,0.59406341,2122.8,2121.6,0.59487025]
[1772696055162,0.59406341,2122.8,2121.8,0.59487025]
[1772696055558,0.59406341,2122.8,2122.0,0.59487025]
[1772696055864,0.59406341,2122.8,2121.9,0.59487025]
[1772696056166,0.59406341,2122.8,2121.7,0.59487025]
[1772696057167,0.59406341,2122.8,2121.1,0.59487025]
[1772696057470,0.59406341,2122.7,2121.2,0.59487025]
[1772696057865,0.59406341,2122.7,2121.3,0.59487025]
[1772696059071,0.59406341,2122.7,2121.4,0.56638915]
[1772696059568,0.59406341,2122.7,2121.7,0.56638915]
[1772696060166,0.59406341,2122.7,2121.9,0.56638915]
[1772696060362,0.59406341,2122.7,2121.1,0.56638915]
[1772696060772,0.59406341,2122.7,2121.6,0.56638915]
[1772696061270,0.59406341,2122.7,2121.8,0.56638915]
[1772696061770,0.59406341,2122.7,2121.9,0.56638915]
[1772696062969,0.59406341,2122.7,2122.0,0.56638915]
[1772696063366,0.57352249,2122.6,2122.0,0.56638915]
[1772696063566,0.57352249,2122.6,2122.1,0.56638915]
[1772696063969,0.57352249,2122.6,2122.3,1.99563469]
[1772696064168,0.57352249,2122.6,2121.9,0.56638915]
[1772696066369,0.37028494,2122.5,2121.9,0.56638915]
[1772696067364,0.37028494,2122.5,2121.5,0.58000295]
[1772696067864,3.91429616,2122.5,2121.5,0.58000295]
[1772696068070,0.36765519,2122.4,2121.5,0.58000295]
[1772696069272,4.28059285,2122.5,2121.7,0.58000295]
[1772696069475,0.36629669,2122.4,2121.7,0.58000295]
[1772696071767,3.91429616,2122.5,2121.7,0.58000295]
[1772696071972,3.91429616,2122.6,2121.7,0.58000295]
[1772696072174,4.28515128,2122.6,2121.7,0.58000295]
[1772696072776,3.91429616,2122.6,2121.7,0.58000295]
[1772696073373,3.91429616,2122.7,2121.7,0.58000295]
[1772696073574,4.28534869,2122.7,2121.7,0.58000295]
[1772696074377,0.37105253,2122.6,2121.7,0.58000295]
[1772696075075,0.37000546,2122.5,2121.7,0.58000295]
[1772696075276,0.37000546,2122.2,2121.3,0.58000295]
[1772696075478,3.91429616,2122.1,2120.9,5.85806516]
[1772696075674,3.91429616,2122.1,2119.7,12.14440452]
[1772696075675,4.28430162,2121.5,2120.8,0.58000295]
[1772696075874,0.37000546,2121.4,2120.8,0.58000295]
[1772696076678,0.37414954,2121.4,2120.8,0.58126523]
[1772696078574,0.37414954,2121.4,2120.4,0.58000295]
[1772696081286,0.00414408,2121.4,2120.4,0.58000295]
[1772696081480,0.54996107,2121.4,2120.4,0.58000295]
[1772696083685,0.00414408,2121.4,2120.6,0.58000295]
[1772696087991,0.54996107,2121.4,2120.6,0.58000295]
[1772696097897,0.54469226,2121.3,2120.1,0.54599497]
[1772696098099,0.54469226,2121.2,2120.1,0.54599497]
[1772696098298,0.54469226,2121.0,2120.1,0.54599497]
[1772696099800,13.74069226,2121.1,2120.1,0.54599497]
[1772696099994,0.54469226,2121.0,2120.1,0.54599497]
[1772696100395,0.54469226,2121.3,2120.3,0.54599497]
[1772696100594,0.54469226,2121.3,2120.5,0.54599497]
[1772696102193,0.00414408,2121.4,2120.5,0.54599497]
[1772696103106,0.54883634,2121.4,2120.5,0.54599497]
[1772696103398,3.19001309,2121.4,2120.5,0.54599497]
[1772696103603,0.54469226,2121.2,2120.5,0.54599497]
[1772696104196,0.54469226,2121.1,2120.5,0.54599497]
[1772696104800,13.75469226,2121.3,2120.5,0.54599497]
[1772696105199,0.54469226,2121.2,2120.5,0.54599497]
[1772696105906,0.54469226,2121.1,2120.5,0.54599497]
[1772696107598,3.91429616,2121.2,2120.5,0.54599497]
[1772696107801,17.66898842,2121.3,2120.5,0.54599497]
[1772696108201,17.12429616,2121.3,2120.5,0.54599497]
[1772696108407,0.54469226,2121.2,2120.5,0.54599497]
[1772696109305,0.54469226,2121.1,2120.5,0.54599497]
[1772696109504,3.91429616,2121.2,2120.5,0.54599497]
[1772696109804,0.54469226,2121.2,2120.5,0.54599497]
[1772696110907,17.67995708,2121.3,2120.5,0.54599497]
[1772696111803,0.54469226,2121.2,2120.5,0.54599497]
[1772696112196,0.54469226,2121.2,2120.0,0.54599497]
[1772696112404,0.54469226,2121.0,2120.0,0.54599497]
[1772696116712,0.54469226,2120.9,2120.0,0.54599497]
[1772696117509,0.54469226,2120.6,2120.0,0.54599497]
[1772696118012,0.54469226,2120.5,2119.7,0.54599497]
[1772696119312,0.56662577,2120.4,2119.7,0.54599497]
[1772696119513,0.56662577,2120.4,2119.5,0.56959536]
[1772696120414,0.56662577,2120.2,2119.5,0.56959536]
[1772696120916,5.93302438,2120.1,2119.5,0.56959536]
[1772696121113,0.56662577,2120.1,2119.5,0.56959536]
[1772696122510,3.92526482,2120.4,2119.0,0.56959536]
[1772696122511,0.56662577,2119.9,2119.0,0.56959536]
[1772696122709,0.57096567,2119.9,2119.0,0.56959536]
[1772696125816,0.0043399,2119.9,2119.0,0.56959536]
[1772696126116,0.0043399,2119.9,2119.2,0.56959536]
[1772696128315,0.59197307,2119.9,2119.2,0.56959536]
[1772696134119,0.0043399,2119.9,2119.2,0.56959536]
[1772696134713,0.59197307,2119.9,2119.2,0.56959536]
[1772696138520,0.59197307,2119.9,2119.1,0.56902205]
[1772696138716,5.35152896,2119.8,2119.1,0.56902205]
[1772696139020,0.58763317,2119.7,2119.1,0.56902205]
[1772696143616,0.58763317,2119.7,2118.9,0.56902205]
[1772696144223,0.0043399,2119.9,2119.0,0.56902205]
[1772696144422,0.58763317,2120.3,2119.4,0.56902205]
[1772696145424,0.59212969,2120.3,2119.4,0.56902205]
[1772696145735,0.58763317,2120.1,2119.4,0.56902205]
[1772696146131,0.58763317,2120.0,2119.4,0.56902205]
[1772696146326,4.51289799,2120.2,2119.4,0.56902205]
[1772696146526,0.58763317,2120.1,2119.4,0.56902205]
[1772696147128,4.51289799,2120.1,2119.4,0.56902205]
[1772696147322,0.58763317,2120.1,2119.4,0.56902205]
[1772696147731,0.58763317,2120.0,2119.4,0.56902205]
[1772696149025,0.56134672,2119.9,2119.1,0.58221779]
[1772696151235,0.56134672,2119.8,2119.1,0.58221779]
[1772696152336,0.56134672,2120.2,2119.3,0.58221779]
[1772696153131,0.56584324,2120.3,2119.3,0.58221779]
[1772696155737,0.56134672,2120.2,2119.1,0.58221779]
[1772696155933,0.56134672,2120.0,2119.1,0.58221779]
[1772696156335,0.56134672,2119.8,2119.1,0.58221779]
[1772696156637,5.27298442,2119.7,2119.1,0.58221779]
[1772696157141,0.56134672,2119.6,2118.8,0.1018243]
[1772696157334,0.56134672,2119.3,2118.0,0.58221779]
[1772696157645,0.56134672,2119.1,2118.0,0.58221779]
[1772696157829,0.56134672,2118.9,2118.0,0.58221779]
[1772696158032,0.56134672,2118.7,2118.0,0.58221779]
[1772696158641,5.2574524,2118.6,2117.7,0.58221779]
[1772696158939,0.56134672,2118.5,2117.7,0.58221779]
[1772696160743,0.56134672,2118.5,2117.5,0.58221779]
[1772696161040,0.56134672,2118.3,2117.5,0.58221779]
[1772696161834,0.56134672,2118.5,2117.5,0.58221779]
[1772696162029,0.0039671,2118.6,2117.6,0.58221779]
[1772696162234,0.56531382,2118.6,2117.6,0.58221779]
[1772696162439,0.56531382,2118.6,2117.8,0.58221779]
[1772696162936,0.56531382,2118.6,2117.6,0.58221779]
[1772696163133,0.0039671,2118.6,2117.6,0.81828779]
[1772696163332,0.0039671,2118.6,2117.7,0.58221779]
[1772696163542,0.56531382,2118.6,2117.7,0.58221779]
[1772696165633,0.0039671,2118.6,2117.7,0.58221779]
[1772696166341,0.56134672,2119.2,2118.1,0.58221779]
[1772696166538,0.56134672,2119.2,2117.4,2.64466112]
[1772696166539,0.56134672,2119.2,2118.3,0.58221779]
[1772696166845,0.56134672,2119.4,2118.5,0.58221779]
[1772696167345,0.56571448,2119.4,2118.5,0.58561208]
[1772696168746,0.00436776,2119.4,2118.7,0.58221779]
[1772696170142,0.56134672,2119.7,2118.7,0.58221779]
[1772696170439,0.56134672,2119.7,2118.9,0.58221779]
[1772696171147,0.56134672,2120.3,2118.9,0.58221779]
[1772696171351,0.56134672,2120.1,2118.9,0.58221779]
[1772696171638,0.56134672,2119.9,2118.9,0.58221779]
[1772696179048,0.56134672,2119.9,2118.7,0.57434513]
[1772696181748,0.55968931,2119.8,2118.5,0.57773942]
[1772696182846,0.55968931,2119.7,2118.5,0.57773942]
[1772696186951,0.59116751,2119.6,2118.5,0.57773942]
[1772696189646,0.59116751,2119.6,2118.7,0.53873392]
[1772696197458,0.59116751,2119.8,2118.9,0.53873392]
[1772696197856,0.59116751,2119.8,2119.1,0.53873392]
[1772696198855,0.59116751,2119.8,2119.0,0.53873392]
[1772696199060,0.59116751,2119.8,2118.7,0.53873392]
[1772696199363,0.59116751,2119.7,2118.7,0.53873392]
[1772696204172,0.59116751,2119.6,2118.7,0.53873392]
[1772696211469,9.11313297,2119.6,2118.5,0.58329823]
[1772696211774,0.53818856,2119.3,2118.5,0.58329823]
[1772696212373,0.53818856,2119.1,2118.5,0.58329823]
[1772696212969,0.53818856,2119.0,2118.5,0.58329823]
[1772696213680,0.53818856,2119.0,2118.2,0.57990394]
[1772696214477,0.53818856,2118.9,2118.2,0.57990394]
[1772696214878,0.53818856,2118.9,2118.2,0.58476568]
[1772696215279,0.53818856,2118.9,2118.2,0.00486174]
[1772696215871,0.53818856,2118.9,2118.2,0.58476568]
[1772696216981,0.53818856,2118.8,2118.2,0.58476568]
[1772696217180,0.54286054,2118.8,2118.2,0.58476568]
[1772696217981,0.00467198,2118.8,2118.2,0.58476568]
[1772696218378,0.54286054,2118.8,2118.2,0.58476568]
[1772696219586,3.91468433,2119.1,2118.2,0.58476568]
[1772696219788,0.53818856,2119.2,2118.2,0.58476568]
[1772696220487,0.53818856,2119.1,2118.2,0.58476568]
[1772696220682,0.53818856,2118.9,2118.2,0.58476568]
[1772696222784,0.54345226,2119.1,2118.2,0.58476568]
[1772696224389,0.53818856,2119.0,2118.2,0.58476568]
[1772696228190,0.53818856,2119.0,2118.2,0.00486174]
[1772696228191,0.53818856,2118.9,2118.2,0.00486174]
[1772696229193,0.53818856,2118.8,2118.2,0.00486174]
[1772696230192,0.53818856,2118.7,2118.2,0.00486174]
[1772696230393,0.53818856,2118.7,2118.0,0.57990394]
[1772696231287,0.53818856,2118.7,2118.0,0.58356826]
[1772696233690,0.53818856,2118.7,2118.0,0.00366432]
[1772696235391,0.53818856,2118.5,2117.5,0.57990394]
[1772696235596,0.53818856,2118.4,2117.5,0.57990394]
[1772696236096,0.53818856,2118.5,2117.5,0.57990394]
[1772696236297,0.53818856,2118.5,2117.5,0.58099044]
[1772696236496,0.53818856,2118.4,2117.6,0.57990394]
[1772696236990,0.53818856,2118.4,2117.7,0.57990394]
[1772696238298,1.60522501,2118.5,2117.9,0.57990394]
[1772696238299,0.53818856,2118.5,2117.9,0.57990394]
[1772696239394,2.15118506,2118.7,2117.9,0.57990394]
[1772696239601,5.79698702,2118.6,2117.9,0.57990394]
[1772696239800,0.54596005,2118.6,2117.9,0.57990394]
[1772696240000,5.25063041,2118.5,2117.9,0.57990394]
[1772696240398,5.79659046,2118.5,2117.9,0.57990394]
[1772696240602,0.54596005,2118.5,2117.9,0.57990394]
[1772696243903,0.54596005,2118.7,2117.9,0.57990394]
[1772696244103,5.80311294,2118.6,2117.9,0.57990394]
[1772696244402,5.25715289,2118.5,2117.9,0.57990394]
[1772696244607,0.54596005,2118.8,2118.1,0.546627]
[1772696249612,0.54596005,2118.8,2118.0,0.23603]
[1772696249815,0.54596005,2118.8,2118.0,0.69350628]
[1772696250001,0.54596005,2118.8,2118.1,0.45747628]
[1772696264519,0.54596005,2118.8,2118.3,0.46390355]
[1772696267821,0.5666547,2118.9,2118.5,0.46284682]
[1772696268221,3.91994803,2119.1,2118.5,0.46284682]
[1772696268222,4.48660273,2119.1,2118.5,0.46284682]
[1772696268414,0.5719184,2119.1,2118.7,0.5928728]
[1772696268619,0.0052637,2119.1,2118.7,0.5928728]
[1772696269221,4.47859032,2119.2,2118.7,0.5928728]
[1772696269420,0.56390599,2119.2,2118.7,0.5928728]
[1772696270322,0.56866892,2119.2,2118.7,0.5928728]
[1772696271525,0.56866892,2119.2,2118.5,0.59440267]
[1772696271928,0.56866892,2119.2,2118.4,0.59440267]
[1772696272124,0.56390599,2119.1,2118.4,0.59440267]
[1772696273024,0.56390599,2119.0,2118.4,0.59440267]
[1772696276431,0.56390599,2119.1,2118.4,0.59440267]
[1772696281837,0.00476293,2119.2,2118.4,0.59440267]
[1772696282034,0.00476293,2119.2,2118.6,0.59440267]
[1772696282729,0.56866892,2119.2,2118.6,0.59440267]
[1772696283427,0.56390599,2119.1,2118.3,0.59440267]
[1772696285840,0.56390599,2119.1,2118.4,0.59440267]
[1772696287038,0.00476293,2119.2,2118.5,0.59440267]
[1772696287940,0.56866892,2119.2,2118.5,0.59440267]
[1772696288139,0.56866892,2119.2,2118.6,0.59440267]
[1772696290539,0.56390599,2119.1,2118.4,0.59440267]
[1772696293641,0.56390599,2119.1,2118.0,0.59440267]
[1772696293642,0.56390599,2118.9,2118.0,0.59440267]
[1772696295344,0.56390599,2118.8,2118.0,0.59440267]
[1772696295542,0.56390599,2118.7,2118.0,0.59440267]
[1772696299546,0.54339384,2118.1,2117.5,0.5407394]
[1772696299740,0.54339384,2118.1,2117.1,0.5396529]
[1772696300241,0.54339384,2118.1,2117.1,6.7136529]
[1772696300442,1.60365722,2118.2,2117.0,0.5396529]
[1772696300443,0.54339384,2117.8,2117.0,0.5396529]
[1772696300836,0.54339384,2117.8,2117.0,0.00476494]
[1772696301242,0.54339384,2117.8,2116.7,0.5396529]
[1772696301440,0.54339384,2117.5,2116.7,0.5396529]
[1772696301838,0.54339384,2117.5,2116.5,6.7146529]
[1772696302040,0.54339384,2117.5,2116.5,0.5396529]
[1772696302244,0.54339384,2117.5,2115.9,7.53680517]
[1772696302245,0.54339384,2117.2,2116.4,0.5396529]
[1772696302449,0.54339384,2117.2,2116.4,0.0061005]
[1772696302450,0.5472062,2117.2,2116.4,0.0061005]
[1772696303244,0.54339384,2117.6,2116.5,0.5396529]
[1772696303451,0.54339384,2118.0,2116.7,0.5396529]
[1772696303651,0.54339384,2118.0,2116.9,0.5396529]
[1772696304452,0.54925006,2118.0,2116.9,0.5396529]
[1772696304648,0.54339384,2118.3,2117.3,0.5396529]
[1772696304954,0.54339384,2118.5,2117.5,0.5396529]
[1772696305150,0.54339384,2118.5,2117.7,0.5396529]
[1772696305651,0.54727789,2118.5,2117.7,0.5396529]
[1772696320467,0.54727789,2118.5,2117.5,0.56126138]
[1772696324574,0.54727789,2118.5,2117.7,0.56126138]
[1772696324775,0.54727789,2118.5,2117.9,0.56126138]
[1772696324977,0.54727789,2118.5,2117.9,0.56589038]
[1772696331578,0.54727789,2118.5,2117.9,0.004629]
[1772696332377,0.59415664,2118.4,2117.4,0.59495218]
[1772696332682,0.59415664,2118.3,2117.4,0.59495218]
[1772696333281,0.59415664,2118.2,2117.4,0.59957288]
[1772696334385,0.59415664,2118.1,2117.4,0.59957288]
[1772696340388,0.59415664,2118.1,2117.4,0.0046207]
[1772696340584,0.59415664,2118.0,2117.4,0.0046207]
[1772696340790,0.59415664,2118.0,2117.1,0.59495218]
[1772696341192,0.59415664,2118.0,2116.9,0.59495218]
[1772696341394,0.59415664,2117.9,2116.9,0.59495218]
[1772696341791,0.59415664,2117.9,2116.9,0.6007669]
[1772696341996,0.59415664,2117.8,2116.9,0.6007669]
[1772696342787,0.59415664,2117.8,2117.1,0.59495218]
[1772696343187,0.59415664,2118.2,2117.3,0.59495218]
[1772696346091,0.59415664,2118.2,2117.4,0.59495218]
[1772696350300,0.59415664,2118.2,2117.6,0.59495218]
[1772696351501,0.59415664,2118.2,2117.7,0.59495218]
[1772696351802,0.59415664,2118.3,2117.7,0.59495218]
[1772696352000,0.59415664,2118.3,2117.5,6.176]
[1772696352203,0.59415664,2118.3,2117.5,6.77095218]
[1772696352502,0.59415664,2118.3,2117.5,0.59495218]
[1772696355901,0.59415664,2118.4,2117.7,0.59495218]
[1772696357404,0.59415664,2118.4,2117.8,6.77195218]
[1772696357798,0.59415664,2118.4,2117.9,0.59495218]
[1772696368520,0.00388405,2118.5,2117.9,0.59495218]
[1772696369114,0.00388405,2118.5,2118.1,0.54390145]
[1772696369319,0.500071,2118.7,2118.1,0.54390145]
[1772696369916,0.500071,2118.9,2118.3,0.54390145]
[1772696370420,0.50359296,2118.9,2118.3,0.54390145]
[1772696371522,0.00352196,2118.9,2118.3,2.14897537]
[1772696371724,0.00352196,2118.9,2118.4,0.54390145]
[1772696371922,0.5032799,2119.1,2118.4,0.54891108]
[1772696372119,0.5032799,2119.3,2118.6,0.54390145]
[1772696372322,0.5032799,2119.3,2118.8,0.54390145]
[1772696372625,0.5032799,2119.5,2118.8,0.54390145]
[1772696373020,0.50764308,2119.5,2118.8,0.54390145]
[1772696377128,0.51297642,2119.3,2118.4,0.00500963]
[1772696377827,0.51297642,2119.3,2118.4,0.54891108]
[1772696381321,0.51297642,2119.3,2118.4,0.00500963]
[1772696381527,0.5077606,2118.5,2118.1,0.54390145]
[1772696381723,0.5077606,2118.5,2117.9,0.54390145]
[1772696382532,0.5077606,2118.5,2117.9,0.54800877]
[1772696384828,0.58185853,2118.7,2117.9,0.54800877]
[1772696388530,0.58185853,2118.8,2117.9,0.54800877]
[1772696389336,0.58185853,2118.8,2118.0,0.57154688]
[1772696390635,0.58185853,2118.8,2118.1,0.57154688]
[1772696391530,0.23927062,2118.8,2118.1,0.57154688]
[1772696392432,0.55000156,2119.1,2118.1,0.57154688]
[1772696392736,0.55000156,2119.1,2118.3,0.57154688]
[1772696393640,0.55436474,2119.5,2118.5,0.57154688]
[1772696393836,0.55436474,2119.5,2118.6,0.57154688]
[1772696397641,0.00436318,2119.5,2118.8,0.57154688]
[1772696398544,0.00436318,2119.5,2118.9,0.57154688]
[1772696398944,0.55000156,2119.8,2118.9,0.57154688]
[1772696399846,0.55000156,2119.8,2119.1,0.57154688]
[1772696400047,0.55532498,2119.8,2119.1,0.57154688]
[1772696403349,0.55000156,2119.5,2118.4,0.57154688]
[1772696403550,0.55000156,2119.3,2118.0,0.57154688]
[1772696403948,0.55000156,2119.2,2118.0,0.57154688]
[1772696404342,3.92041136,2119.3,2118.7,0.57154688]
[1772696404547,7.89266054,2119.6,2118.7,0.57154688]
[1772696404548,0.55000156,2119.6,2118.7,0.57154688]
[1772696405353,0.55000156,2119.5,2118.1,0.57154688]
[1772696405741,0.55000156,2119.5,2117.9,6.18410732]
[1772696405742,0.55000156,2119.5,2118.3,0.57154688]
[1772696406647,0.55000156,2119.5,2118.5,0.57154688]
[1772696407543,0.55000156,2119.5,2118.6,0.57154688]
[1772696418556,0.55000156,2119.5,2118.3,0.57154688]
[1772696418854,0.54101532,2118.9,2118.0,0.56361871]
[1772696419054,0.54101532,2118.8,2118.0,0.56361871]
[1772696423859,0.54101532,2119.2,2118.2,0.56361871]
[1772696425957,0.54101532,2119.4,2118.4,0.56361871]
[1772696426660,0.54101532,2119.4,2118.6,0.56361871]
[1772696428662,3.90639253,2119.6,2118.6,0.56361871]
[1772696428663,0.57504077,2119.6,2118.6,0.56361871]
[1772696430463,0.58036419,2119.8,2118.6,0.56361871]
[1772696431667,4.4814333,2119.6,2118.6,0.56361871]
[1772696431863,0.57504077,2119.4,2118.6,0.56361871]
[1772696433374,0.57504077,2119.5,2118.6,0.56361871]
[1772696434466,0.57504077,2119.4,2118.6,0.56361871]
[1772696436675,0.57504077,2119.4,2118.3,0.54161386]
[1772696437076,0.57504077,2119.3,2118.3,0.54161386]
[1772696437876,0.57504077,2119.1,2118.3,0.54161386]
[1772696438374,0.57504077,2119.1,2118.1,0.54161386]
[1772696438572,0.57504077,2119.0,2118.1,0.54161386]
[1772696440478,0.57504077,2118.9,2118.1,0.54161386]
[1772696448385,0.57504077,2118.9,2117.9,0.54572118]
[1772696448585,0.57504077,2118.8,2117.9,0.54572118]
[1772696448783,0.57504077,2118.8,2117.4,0.56960027]
[1772696448784,0.54840958,2118.4,2117.4,0.56960027]
[1772696448980,0.54840958,2118.3,2117.4,0.56960027]
[1772696449378,0.54840958,2118.2,2117.4,0.56960027]
[1772696449888,0.00498518,2118.2,2117.4,0.57503221]
[1772696450082,5.80032903,2118.2,2117.4,0.57503221]
[1772696450288,0.54840958,2118.0,2117.4,0.57503221]
[1772696450679,0.54840958,2118.0,2117.4,0.00543194]
[1772696453183,0.46448199,2117.8,2117.4,0.00543194]
[1772696453486,0.46448199,2117.8,2117.2,0.56960027]
[1772696454285,0.46448199,2117.8,2117.2,0.57336017]
[1772696455788,0.46448199,2117.8,2116.6,0.56960027]
[1772696456689,0.46448199,2117.8,2116.8,0.56960027]
[1772696456690,0.47489293,2117.8,2116.8,0.56960027]
[1772696456893,0.47489293,2118.1,2117.0,0.56960027]
[1772696457192,0.00498518,2118.2,2117.0,0.56960027]
[1772696457386,0.47489293,2118.1,2117.0,0.56960027]
[1772696457786,0.47489293,2118.1,2117.2,0.56960027]
[1772696461688,0.48416909,2118.2,2117.4,0.56960027]
[1772696461889,0.00498518,2118.2,2117.4,0.56960027]
[1772696463293,0.53331163,2118.2,2117.4,0.56960027]
[1772696468897,0.53331163,2118.2,2116.9,0.56960027]
[1772696469090,0.5201708,2118.0,2116.9,0.56960027]
[1772696469290,0.52515598,2118.2,2117.1,0.56960027]
[1772696469490,5.76629223,2118.1,2117.1,0.56960027]
[1772696469692,0.5201708,2118.0,2117.1,0.56960027]
[1772696470198,0.5201708,2118.0,2117.3,0.56960027]
[1772696471996,0.00498518,2118.2,2117.5,0.56960027]
[1772696472191,0.00498518,2118.2,2117.7,0.56960027]
[1772696472889,0.53798397,2118.6,2117.7,0.56960027]
[1772696473190,0.53798397,2118.8,2117.8,0.56960027]
[1772696473389,5.79121507,2118.7,2117.8,0.56960027]
[1772696473597,5.2532311,2118.6,2117.8,0.56960027]
[1772696473892,0.00510797,2118.6,2117.8,0.57458544]
[1772696480394,0.53952536,2118.6,2117.8,0.57458544]
[1772696480600,0.53952536,2118.6,2117.9,0.57593598]
[1772696483703,0.00510797,2118.6,2117.9,0.57593598]
[1772696485102,0.54250264,2118.6,2117.9,0.57593598]
[1772696488703,0.00510797,2118.6,2117.9,0.57593598]
[1772696489304,5.79854507,2118.6,2117.9,0.57593598]
[1772696489506,0.5433043,2118.6,2117.9,0.57593598]
[1772696497920,0.55511774,2118.4,2117.9,0.57593598]
[1772696500322,5.26770398,2118.3,2117.9,0.57593598]
[1772696500519,0.55563717,2118.2,2117.8,0.00498517]
[1772696500720,0.56806856,2118.0,2117.4,0.58704344]
[1772696503023,3.90639253,2118.3,2117.4,0.58704344]
[1772696503225,0.56806856,2118.2,2117.4,0.58704344]
[1772696503423,5.83452814,2118.1,2117.4,0.58704344]
[1772696503625,5.26645958,2118.0,2117.4,0.58704344]
[1772696503826,0.56806856,2117.9,2117.4,0.58704344]
[1772696504026,0.56806856,2117.9,2117.2,0.58704344]
[1772696511531,0.58569538,2118.1,2117.4,0.54355406]
[1772696511727,5.25053468,2118.0,2117.4,0.54355406]
[1772696512226,0.58569538,2118.1,2117.6,0.54355406]
[1772696513322,0.58569538,2118.3,2117.6,0.54355406]
[1772696513526,5.83665179,2118.2,2117.6,0.54355406]
[1772696513827,0.58569538,2118.4,2117.8,0.54355406]
[1772696514031,3.9115005,2118.6,2117.8,0.54355406]
[1772696514032,0.58569538,2118.2,2117.8,0.54355406]
[1772696514434,0.58569538,2118.2,2117.6,0.54355406]
[1772696514934,0.58569538,2118.4,2117.6,0.54355406]
[1772696515232,0.58569538,2118.4,2117.8,0.54355406]
[1772696516234,2.19659918,2118.6,2117.8,0.54355406]
[1772696516430,5.83850703,2118.5,2117.8,0.54355406]
[1772696516635,5.25281165,2118.4,2117.8,0.54355406]
[1772696516834,5.83850703,2118.4,2117.8,0.54355406]
[1772696517135,0.58569538,2118.4,2117.8,0.54355406]
[1772696519338,0.58569538,2118.4,2117.5,0.54355406]
[1772696521839,5.25534986,2118.3,2117.5,0.54355406]
[1772696522036,0.58569538,2118.2,2117.5,0.54355406]
[1772696524740,0.58569538,2118.5,2117.7,0.54355406]
[1772696527643,0.00510797,2118.6,2117.7,0.54355406]
[1772696527941,0.59080335,2118.6,2117.7,0.54355406]
[1772696528940,0.59080335,2118.6,2117.9,0.54355406]
[1772696531849,0.59080335,2118.6,2117.7,0.54355406]
[1772696537847,0.59080335,2118.6,2117.8,0.54355406]
[1772696538148,0.00510797,2118.6,2117.9,0.54355406]
[1772696539051,0.00510797,2118.6,2118.0,0.59079183]
[1772696542349,0.55400719,2118.9,2118.2,0.59079183]
[1772696542549,0.55400719,2119.1,2118.2,0.59079183]
[1772696543453,0.55959367,2119.1,2118.2,0.59523243]
[1772696544356,0.00558648,2119.1,2118.4,0.59079183]
[1772696544552,0.00558648,2119.1,2118.5,0.59079183]
[1772696544751,0.55400719,2119.3,2118.5,0.59079183]
[1772696545158,0.55400719,2119.7,2118.7,0.59079183]
[1772696545657,0.55761533,2119.7,2118.7,0.59079183]
[1772696545855,0.00360814,2119.7,2119.0,0.59079183]
[1772696546657,0.00360814,2119.7,2119.0,6.77079183]
[1772696546857,0.00360814,2119.7,2119.1,0.54669094]
[1772696547655,0.00360814,2119.7,2118.9,1.60492346]
[1772696547656,0.56462616,2119.7,2118.9,0.54669094]
[1772696549056,0.56462616,2119.7,2118.8,6.18]
[1772696549258,0.56462616,2119.7,2118.9,0.54669094]
[1772696556253,0.56462616,2119.7,2118.3,0.54669094]
[1772696557160,0.56101802,2119.6,2118.3,0.54669094]
[1772696559670,0.56101802,2119.6,2118.5,0.54669094]
[1772696563062,0.56101802,2119.4,2118.5,0.54669094]
[1772696563262,0.56101802,2119.4,2118.3,0.54669094]
[1772696564268,0.56101802,2119.3,2118.3,0.54669094]
[1772696566369,0.56101802,2119.3,2118.4,0.54669094]
[1772696567756,0.56101802,2119.4,2118.6,0.54669094]
[1772696568362,0.56101802,2119.6,2118.6,0.54669094]
[1772696569672,0.56101802,2119.6,2118.8,0.54634384]
[1772696571566,0.00360814,2119.7,2118.8,0.54634384]
[1772696571770,0.00360814,2119.7,2119.0,0.54634384]
[1772696572772,7.34265898,2120.4,2118.7,6.181]
[1772696572773,0.59655156,2120.5,2119.5,0.23586]
[1772696572966,0.59655156,2120.5,2118.8,8.57738776]
[1772696572967,0.59655156,2120.5,2119.1,6.181]
[1772696573167,0.59655156,2120.5,2119.0,0.23592]
[1772696573364,0.59655156,2120.4,2119.0,0.23592]
[1772696573661,0.83232156,2120.4,2118.7,5.93183228]
[1772696573866,0.59655156,2120.3,2118.6,12.11283228]
[1772696574268,0.59655156,2120.2,2118.6,12.11283228]
[1772696574471,0.59655156,2120.0,2118.6,12.11283228]
[1772696574671,0.59655156,2120.0,2118.6,6.181]
[1772696575473,0.59947238,2119.7,2118.4,6.41698]
[1772696578675,0.59947238,2119.7,2118.5,0.00137248]
[1772696579673,0.59947238,2119.7,2118.4,6.41698]